Cogmind - Beta 14 @@@ ROGUE MODE // 2024.08.12 @ 15:38:52 Player: Sionnis Result: Destroyed by Autobeam Turret with Autobeam Performance ------------- Evolutions (0) 0 Regions Visited (4) 800 Robots Destroyed (36) 180 Value Destroyed (794) 794 Prototype IDs (19) 380 Alien Tech Used (0) 0 Bonus (300) 300 TOTAL SCORE: 2454 Bonus ------- Registered with UFD 300 Cogmind --------- Core Integrity 0/250 Matter 270/300 Energy 56/2600 System Corruption 0% Temperature Cool (9) Movement Walking (200) Ox1 Location -7/Scraptown Parts ------- > --- POWER (1) -------- MA-1KR's Cyclogen > --- PROPULSION (2) --- Cargo Legs > --- UTILITY (2) ------ High-capacity Storage Unit Advanced Weight Redist. System > --- WEAPON (2) ------- Datajack DM-GVY's Chainsaw > --- INVENTORY (20) --- Improved Hover Unit Xenon Bombardment Thruster Medium Storage Unit Energy Well (350) Structural Scanner Improved Sensor Array Advanced Terrain Scanner Advanced Terrain Scan Processor Advanced Melee Analysis Suite Advanced ECM Suite Hacking Suite Hacking Suite CPS Tube (2) Peak State ------------ > --- POWER ------------ MA-1KR's Cyclogen > --- PROPULSION ------- Cargo Legs > --- UTILITY ---------- High-capacity Storage Unit Advanced Weight Redist. System > --- WEAPON ----------- Datajack DM-GVY's Chainsaw > --- INVENTORY -------- Improved Hover Unit Xenon Bombardment Thruster Medium Storage Unit Energy Well Structural Scanner Improved Sensor Array Advanced Terrain Scanner Advanced Terrain Scan Processor Advanced Melee Analysis Suite Advanced ECM Suite Hacking Suite Hacking Suite CPS Tube [Rating: 42] Favorites ----------- Power Subdweller Power Source Engine Subdweller Power Source Reactor MA-1KR's Cyclogen Propulsion Light Treads Treads Light Treads Leg Cargo Legs Utility Large Storage Unit Device Seismic Detector Storage Large Storage Unit Protection Scrap Shield Weapon Shotgun Energy Gun Subdweller Laser Energy Cannon Subdweller Beam Cannon Ballistic Gun Shotgun Impact Weapon Maul Slashing Weapon Scythe Special Melee Weapon Datajack Build | -11 -10 -10 -7 -7 ------- Run | Yrd Mat Sub Rec Scr Slots Evolved . | . . . . . Power . | . . . . . Propulsion . | . . . . . Utility . | . . . . . Weapon . | . . . . . Parts Attached 43 | 6 11 16 2 8 Power 5 | 1 1 1 . 2 Engine 4 | 1 1 1 . 1 Core . | . . . . . Reactor 1 | . . . . 1 Propulsion 4 | 2 . 2 . . Treads 3 | 2 . 1 . . Leg 1 | . . 1 . . Wheel . | . . . . . Hover . | . . . . . Flight . | . . . . . Utility 13 | 1 5 3 . 4 Device 7 | . 2 2 . 3 Storage 5 | 1 3 . . 1 Processor . | . . . . . Hackware . | . . . . . Protection 1 | . . 1 . . Artifact . | . . . . . Weapon 21 | 2 5 10 2 2 Energy Gun 3 | . . 3 . . Energy Cannon 2 | . . 2 . . Ballistic Gun 10 | 2 4 4 . . Ballistic Cannon . | . . . . . Launcher . | . . . . . Special Weapon . | . . . . . Impact Weapon 3 | . 1 1 1 . Slashing Weapon 2 | . . . . 2 Piercing Weapon . | . . . . . Special Melee Weapon 1 | . . . 1 . Unidentified Prototypes 1 | . . . . 1 Parts Lost 4 | . . 4 . . Power . | . . . . . Propulsion . | . . . . . Utility 2 | . . 2 . . Weapon 2 | . . 2 . . Highest Loss Streak 1 | . . 1 . . To Critical Strikes . | . . . . . Average Slot Usage (%) 89 | . 99 87 85 84 Engine 13 | . 14 13 14 13 Treads 10 | . 28 10 . . Leg 8 | . . 8 14 14 Device 13 | . 13 13 14 14 Storage 13 | . 14 13 14 14 Energy Gun 1 | . . 3 . . Ballistic Gun 16 | . 27 22 10 . Impact Weapon 2 | . . . 3 8 Slashing Weapon 1 | . . . . 5 Special Melee Weapon 3 | . . . 3 14 Peak Build Rating 42 | 6 10 30 26 42 Average Rating 20 | 4 9 21 25 26 On Entrance 13 | . 6 10 26 25 Naked Turns . | . . . . . Heaviest Build 65 | 11 32 55 37 65 Greatest Support 64 | 40 40 55 55 64 Greatest Overweight (x) 1 | . . . . 1 Average Overweight (x) . | . . . . . Largest Inventory Capacity 20 | 8 15 15 15 20 Average Capacity 15 | 6 14 15 15 18 Most Carried 15 | 2 15 15 13 15 Average Carried 12 | 1 11 14 13 10 Final Capacity 20 | 8 15 15 15 20 Final Carried 15 | 2 15 13 13 13 Class Distribution -------------------- 98% | Mutant Dominant Class ---------------- Mutant | -10/Materials Mutant | -10/Subcaves Mutant | -7/Recycling Mutant | -7/Scraptown Resources | -11 -10 -10 -7 -7 ----------- Run | Yrd Mat Sub Rec Scr Matter Collected 1257 | 160 513 497 . 87 Remotely . | . . . . . Salvage Created 871 | . 435 436 . . Parts 74 | . 47 27 . . Haulers Intercepted 2 | . 2 . . . Recyclers Shooed . | . . . . . Parts Field Recycled . | . . . . . Retrieved Matter . | . . . . . Parts Self-Destructed 15 | . . 15 . . Prevented . | . . . . . Kills | -11 -10 -10 -7 -7 ------- Run | Yrd Mat Sub Rec Scr Combat Hostiles Destroyed 30 | . 16 14 . . Guns 29 | . 16 13 . . Cannons 1 | . . 1 . . Classes Destroyed 7 | . 5 2 . . Worker 1 | . 1 . . . Hauler 2 | . 2 . . . Watcher 3 | . 3 . . . Swarmer 15 | . 12 3 . . Grunt 4 | . 4 . . . Sentry 1 | . . 1 . . Subdweller 10 | . . 10 . . Best Kill Streak 8 | . 8 2 . . Combat Bots Only 3 | . 3 2 . . Max Kills in Single Turn 2 | . 2 1 . . Gunslinging . | . . . . . Exploded . | . . . . . Melee . | . . . . . Uniques/NPCs Destroyed . | . . . . . Combat | -11 -10 -10 -7 -7 -------- Run | Yrd Mat Sub Rec Scr Hostile Shots Fired 148 | . 62 68 . 18 Missed 45 | . 14 21 . 10 Damage Taken 1570 | . 477 1037 . 56 Core 250 | . 66 162 . 22 Absorbed by Shields . | . . . . . Regen/Repaired (Parts) 52 | . 52 . . . Core Remaining (%) 100 | 100 . . . . Volleys Fired 98 | . 39 59 . . Largest 2 | . 2 2 . . Hottest 103 | . 46 103 . . Shots Fired 184 | . 79 105 . . Gun 173 | . 79 94 . . Cannon 11 | . . 11 . . Launcher . | . . . . . Special . | . . . . . Kinetic 154 | . 79 75 . . Thermal 30 | . . 30 . . Explosive . | . . . . . Electromagnetic . | . . . . . Robot Hit Streak 28 | . 6 28 . . Robot Miss Streak 7 | . 7 3 . . Penetration Max . | . . . . . Secondary Targets 2 | . 1 1 . . Max Gunslinging Chain 1 | . 1 1 . . Shots Hit Robots 125 | . 48 77 . . Core Hits 60 | . 29 31 . . Critical Kills 1 | . . 1 . . Critical Parts Destroyed . | . . . . . Critical Strikes 2 | . . 2 . . Destroy 2 | . . 2 . . Melee Attacks 8 | . 1 4 . 3 Impact 5 | . 1 4 . . Slashing 3 | . . . . 3 Piercing . | . . . . . Sneak Attacks . | . . . . . Combat Hostiles . | . . . . . Follow-up Attacks . | . . . . . Damage Inflicted 2109 | . 754 1355 . . Guns 1975 | . 749 1226 . . Cannons 129 | . . 129 . . Explosions . | . . . . . Melee . | . . . . . Ramming 5 | . 5 . . . Kinetic 1724 | . 749 975 . . Thermal 380 | . . 380 . . Explosive . | . . . . . Electromagnetic . | . . . . . Impact . | . . . . . Slashing . | . . . . . Piercing . | . . . . . Highest Corruption 1 | . 1 1 1 . Average Corruption 1 | . 1 1 1 . Corruption Purged . | . . . . . Corruption Blocked . | . . . . . Effects 40 | . 8 31 1 . Message Errors 10 | . 1 8 1 . Matter Fused 8 | . 1 7 . . Heat Flow Errors 2 | . 1 1 . . Energy Discharges 4 | . 2 2 . . Parts Fused 1 | . . 1 . . Data Loss (minor) 10 | . 2 8 . . Data Loss (major) 1 | . . 1 . . Misfires 3 | . 1 2 . . Alerts 1 | . . 1 . . Overload Shots . | . . . . . Overflow Damage . | . . . . . Projectiles . | . . . . . Explosions . | . . . . . Melee . | . . . . . Knockbacks . | . . . . . Impact . | . . . . . Kinetic . | . . . . . Secondary . | . . . . . Self-Inflicted Damage . | . . . . . Shots . | . . . . . Rammed 2 | . 2 . . . Targets Rammed 2 | . 2 . . . Kicked . | . . . . . Crushed . | . . . . . Highest Temperature 189 | . 189 165 . . Average Temperature 98 | . 96 102 . . Received Heat Transfer 339 | . 72 219 . 48 Siege Activations . | . . . . . Robots Corrupted . | . . . . . Combat Hostiles . | . . . . . Parts Fried . | . . . . . Impact Corruptions . | . . . . . Robots Melted . | . . . . . Combat Hostiles . | . . . . . Parts Melted 1 | . . 1 . . Heat Transferred 485 | . . 485 . . Parts Sabotaged . | . . . . . Parts Stolen . | . . . . . Parts Stripped . | . . . . . Power Chain Reactions . | . . . . . Alert | -11 -10 -10 -7 -7 ------- Run | Yrd Mat Sub Rec Scr Peak Influence 213 | . 213 . 14 . Initial 14 | . . . 14 . Average 105 | . 121 . 14 . Maximum Alert Level 1 | . 1 . . . Low Security (%) 98 | 100 97 . 100 . Level 1 1 | . 2 . . . Level 2 . | . . . . . Level 3 . | . . . . . Level 4 . | . . . . . Level 5 . | . . . . . High Security . | . . . . . Max Security . | . . . . . Squads Dispatched 3 | . 3 . . . Investigation 3 | . 3 . . . Extermination . | . . . . . Reinforcement . | . . . . . Assault . | . . . . . Garrison . | . . . . . Intercept . | . . . . . Searches Triggered . | . . . . . Construction Impeded . | . . . . . Haulers Reinforced . | . . . . . Active Scanning Responses . | . . . . . Cargo Convoy Interrupts . | . . . . . Stealth | -11 -10 -10 -7 -7 --------- Run | Yrd Mat Sub Rec Scr Distress Signals 1 | . 1 . . . Communications Jammed . | . . . . . Distress Signals . | . . . . . Times Spotted 47 | . 24 21 . 2 Peak Tracking Total 5 | . 5 5 . 4 Tactical Retreats 6 | . 3 3 . . Traps | -11 -10 -10 -7 -7 ------- Run | Yrd Mat Sub Rec Scr Traps Triggered 6 | . 3 3 . . Indirectly . | . . . . . Trap Hack Attempts . | . . . . . Triggered . | . . . . . Disarmed . | . . . . . Reprogrammed . | . . . . . Reused . | . . . . . Traps Extracted . | . . . . . Installed . | . . . . . Triggered 1 | . . 1 . . Machines | -11 -10 -10 -7 -7 ---------- Run | Yrd Mat Sub Rec Scr Machines Disabled 3 | . 1 1 . 1 Max in Single Turn 1 | . 1 1 . 1 Machines Repaired . | . . . . . Machines Dismantled . | . . . . . Machines Sabotaged . | . . . . . Overloaded Fab Kills . | . . . . . Hacking | -11 -10 -10 -7 -7 --------- Run | Yrd Mat Sub Rec Scr Machines Accessed 12 | . 8 2 . 2 Terminals 6 | . 6 . . . Fabricators . | . . . . . Repair Stations 1 | . 1 . . . Recycling Units 1 | . 1 . . . Scanalyzers . | . . . . . Garrison Access . | . . . . . Total Hacks 31 | . 19 6 . 6 Successful 23 | . 11 6 . 6 Failed 8 | . 8 . . . Catastrophic 2 | . 2 . . . Database Lockouts . | . . . . . Manual 11 | . 11 . . . Terminals 11 | . 11 . . . Fabricators . | . . . . . Repair Stations 4 | . 4 . . . Recycling Units 4 | . 4 . . . Scanalyzers . | . . . . . Garrison Access . | . . . . . Terminal Hacks 12 | . . 6 . 6 Record 10 | . . 5 . 5 Derelict Proto ID Bank 2 | . . 1 . 1 Fabricator Hacks . | . . . . . Repair Station Hacks 3 | . 3 . . . Scan Component 2 | . 2 . . . Repair 1 | . 1 . . . Recycling Unit Hacks 1 | . 1 . . . Retrieve Components 1 | . 1 . . . Scanalyzer . | . . . . . Garrison Access Hacks . | . . . . . Unauthorized Hacks 7 | . 7 . . . Terminals 7 | . 7 . . . Botnet 1 | . 1 . . . Operators 1 | . 1 . . . Skim 5 | . 5 . . . Fabricators . | . . . . . Repair Stations . | . . . . . Recycling Units . | . . . . . Scanalyzers . | . . . . . Garrison Access . | . . . . . Data Cores Recovered . | . . . . . Used . | . . . . . Hacking Detections 7 | . 7 . . . Full Trace Events 1 | . 1 . . . Feedback Events . | . . . . . Feedback Blocked . | . . . . . Robot Schematics Acquired . | . . . . . Robots Built . | . . . . . Authchips . | . . . . . Time . | . . . . . Total Robot Build Rating . | . . . . . Part Schematics Acquired . | . . . . . Parts Built . | . . . . . Authchips . | . . . . . Time . | . . . . . Total Part Build Rating . | . . . . . Parts Repaired 1 | . 1 . . . Time 44 | . 44 . . . Parts Recycled . | . . . . . Recycled Matter . | . . . . . Retrieved Matter . | . . . . . Retrieved Components 1 | . 1 . . . Parts Scanalyzed . | . . . . . Part Schematics Acquired . | . . . . . Parts Damaged . | . . . . . Bothacking | -11 -10 -10 -7 -7 ------------ Run | Yrd Mat Sub Rec Scr Used RIF Installer . | . . . . . Robots Hacked . | . . . . . Non-combat . | . . . . . Combat . | . . . . . Robot Hacks Applied . | . . . . . Relay Couplers Released . | . . . . . Fabnet Peak Effective % . | . . . . . Robots Rewired . | . . . . . Allies Hacked . | . . . . . Hacks Repelled . | . . . . . Allies | -11 -10 -10 -7 -7 -------- Run | Yrd Mat Sub Rec Scr Total Allies . | . . . . . Largest Group . | . . . . . Highest-Rated Group . | . . . . . Highest-Rated Ally . | . . . . . Total Orders . | . . . . . Ally Attacks . | . . . . . Total Damage . | . . . . . Kills . | . . . . . Allies Corrupted . | . . . . . Allies Melted . | . . . . . Intel | -11 -10 -10 -7 -7 ------- Run | Yrd Mat Sub Rec Scr Robot Analysis Total . | . . . . . Derelict Logs Recovered 6 | . . 1 . 5 Drone Launches . | . . . . . Drone Recoveries . | . . . . . Exploration | -11 -10 -10 -7 -7 ------------- Run | Yrd Mat Sub Rec Scr Turns Passed 7042 | 76 1214 3771 131 1850 Spaces Moved 4363 | 44 555 2282 99 1383 Core 4 | 4 . . . . Treads 1289 | 40 555 694 . . Legs 3070 | . . 1588 99 1383 Wheels . | . . . . . Hover . | . . . . . Flight . | . . . . . Fastest Speed 50 | 50 160 130 130 130 Average Speed 138 | 150 160 139 130 130 Slowest Speed 200 | 160 160 160 130 200 Overloaded Moves . | . . . . . Propulsion Burnouts . | . . . . . Robots Hopped . | . . . . . Cave-ins Triggered . | . . . . . Exploration Rate (%) 57 | 4 79 91 21 90 Regions Visited 4 Branch Regions 3 Pre-discovered Areas 3 | . 1 . . 2 Known Exits Taken 2 | . 1 1 . . Unknown Exits Taken 2 | 1 . . 1 . Scrap Searched 6 | . . 2 . 4 Spaces Dug 3 | . . 1 . 2 Terrain Destroyed 4 | . . 2 . 2 Melee 3 | . . 1 . 2 Projectile 1 | . . 1 . . AOE . | . . . . . Terrain Rammed . | . . . . . Walls Destroyed . | . . . . . Machines Disabled . | . . . . . Actions | -11 -10 -10 -7 -7 --------- Run | Yrd Mat Sub Rec Scr Total 5148 | 51 799 2766 100 1432 Wait 550 | . 169 377 . 4 Move 4359 | 43 554 2281 98 1383 Hop . | . . . . . Pick Up 44 | 2 15 12 . 15 Fast Attach 17 | 6 4 3 . 4 Attach 6 | . . 4 . 2 Detach 1 | . . . . 1 Swap 20 | . 7 9 2 2 Drop 41 | . 8 15 . 18 Fire 98 | . 39 59 . . Melee 8 | . 1 4 . 3 Ram . | . . . . . Kick . | . . . . . Crush 2 | . 2 . . . Escape Stasis . | . . . . . Rewire . | . . . . . Trap . | . . . . . Miscellaneous 2 | . . 2 . . Route ------- -11/Scrapyard -10/Materials (discovered 5 exits: *Mat x3 / [*Min] / *Sub) -10/Subcaves (discovered 3 exits: [*Mat x2] / *Rec) -7/Recycling -7/Scraptown (discovered 1 exit: [*Fac]) History --------- Turn | Location | Event 7 | -11/Scrapyard | Discovered new exit (range 14) 77 | -11/Scrapyard | Entered Materials 311 | -10/Materials | Build established: Mutant 426 | -10/Materials | Discovered new exit (range 10) 576 | -10/Materials | Discovered new exit (range 15) 646 | -10/Materials | Repaired Broken Shotgun 906 | -10/Materials | Discovered new exit (range 3) 1013 | -10/Materials | Identified exit to Materials 1112 | -10/Materials | Learned 2 Storage zone layouts 1145 | -10/Materials | Learned location of Mines (-9) 1168 | -10/Materials | Learned Storage stockpile data 1182 | -10/Materials | Identified exit to Subcaves 1182 | -10/Materials | Learned location of 1 exit from Materials 1188 | -10/Materials | Learned Storage security intel 1231 | -10/Materials | Learned location of 1 exit from Storage 1266 | -10/Materials | Learned 2 Storage zone layouts 1291 | -10/Materials | Entered Subcaves 1338 | -10/Subcaves | Identified exit to Recycling 1538 | -10/Subcaves | Shifting Twisted Machinery released Battle Rifle 1541 | -10/Subcaves | Shifting Twisted Machinery released Sub. Power Source 2666 | -10/Subcaves | Visited 4L-MR0's lab 2685 | -10/Subcaves | Found Cargo Legs 2686 | -10/Subcaves | Attached Cargo Legs, gained temporary slots: Utility x2 2707 | -10/Subcaves | Core integrity fell below 50% 2911 | -10/Subcaves | Discovered new exit (range 6) 3086 | -10/Subcaves | Discovered new exit (range 5) 3460 | -10/Subcaves | A swath of the cavern ceiling suddenly collapsed 3555 | -10/Subcaves | Shifting Twisted Machinery released Scrap Shield 4486 | -10/Subcaves | Core integrity fell below 20% 4694 | -10/Subcaves | Shifting Twisted Machinery released Sub. Machine Gun 4956 | -10/Subcaves | Shifting Twisted Machinery released Sub. Beam Cannon 4996 | -10/Subcaves | Visited Clippyterm 5000 | -10/Subcaves | Learned Research machine intel 5000 | -10/Subcaves | Learned Research security intel 5062 | -10/Subcaves | Entered Recycling 5160 | -7/Recycling | Scanned before Scraplab entrance 5181 | -7/Recycling | Entered Scraplab 5192 | -7/Recycling | Discovered new exit (range 2) 5193 | -7/Recycling | Entered Scraptown 5193 | -7/Scraptown | System corruption cleaned by C-Scrubber 5297 | -7/Scraptown | Scanned Subdweller tech in exchange for log data 5300 | -7/Scraptown | Learned location of Armory (-3) 5301 | -7/Scraptown | Learned Research emergency access door positions 5303 | -7/Scraptown | Learned location of Extension (-4) 5304 | -7/Scraptown | Learned location of 1 exit from Upper Caves 5305 | -7/Scraptown | Learned 12 Factory zone layouts 5365 | -7/Scraptown | Visited Symbiants 5391 | -7/Scraptown | Visited UFD Registry 5391 | -7/Scraptown | Registered with UFD as "Bladehead" 5406 | -7/Scraptown | Visited The Evicted 5446 | -7/Scraptown | Visited Red Mages 5487 | -7/Scraptown | Visited TADAMA 5514 | -7/Scraptown | Visited SPCMW 5570 | -7/Scraptown | Visited Comm Corps 5625 | -7/Scraptown | Visited Awakened 6103 | -7/Scraptown | Discovered new exit (range 5) 6290 | -7/Scraptown | Visited Junk Repository 6335 | -7/Scraptown | Visited Curators Association 6378 | -7/Scraptown | Visited Junk Repository 6421 | -7/Scraptown | Visited Science Guys 6461 | -7/Scraptown | Visited Scrap Suit Storage 6523 | -7/Scraptown | Visited Scrapoid Research Area 6542 | -7/Scraptown | Visited Cartography Club 6623 | -7/Scraptown | Visited Abandonware Association 6632 | -7/Scraptown | Learned abandonware demo "OVRCLOCK.EXE" 6636 | -7/Scraptown | Learned abandonware demo "HACKBUD.EXE" 6636 | -7/Scraptown | Learned abandonware demo "MELTYB.EXE" 6667 | -7/Scraptown | Visited LU-1G1's Boring Crew 6718 | -7/Scraptown | Visited Observation Area 6861 | -7/Scraptown | Delivered Scrap Shield to a Scientist 7002 | -7/Scraptown | Attacked by Scraptown defenders 7007 | -7/Scraptown | Found MA-1KR's Cyclogen 7022 | -7/Scraptown | Found Prototype Slashing Weapon 7022 | -7/Scraptown | Identified DM-GVY's Chainsaw 7043 | -7/Scraptown | Destroyed by Autobeam Turret with Autobeam Last Messages --------------- 4Q-H6C(c): These things take time. Don't worry, I'll have it delivered to you later on, maybe in the caves. It'll be worth the wait. Acquired Humpback. Dropped Humpback. 1K-BKT(c): "Come one, come all! See for yourself a fine selection of the many wondrous pieces in our collection!" X9-1RF(p): "Ugh, more debugging..." Dropped Lgt. Ion Engine. 1K-BKT(c): "Come one, come all! See for yourself a fine selection of the many wondrous pieces in our collection!" Enclosure breached. ANNOUNCEMENT: Intruder alert! Defend Scraptown! Acquired MA-1KR's Cyclogen. Dropped Scythe. Acquired Prototype Slashing Weapon. Identified DM-GVY's Chainsaw. Autobeam Turret pops up from the ground. Map ----- +----------------------------------------------------+ | #??"""" ""# "" "" ##????????#"" "#?? | | #"?"""" ""# "" "" X"#??????###"" "#? | | ""#"""" ""# " " ######### #"" "## | | #######" "" "" | | #?????#" "" "" "## | | #######" ""# " " ######### #"" "#? | | ""# "" "" ""???????###"" "#?? | | ""# "" "" ##????????#"" "#?? | | ""# ""?????????#"" "#?? | | ""# #?????????#"" "#?? | | ""###### ################"" "### | | """""""""""""""""""""""""""" "##" | | """""""""""""""""""""""""""" | | "## | | "## | | "## | | #""""#" ## | | #????#" # | | #????#"""""" """"""""""" """"""""""" """""" ## | | ##????####### ###########E########### ###### ## | | ?????????# #" "# #?# ## | | ?????????# ##"" ""## #?# ## | | ?????????# # # ##!" " ## # # #?# ### | | ?????????#!!# !=# /##"" c " ##* # [#= #?# #?? | | ?????????# ]# = # #" t *"# ]# =[# #?# #?? | | ?????????############"" @ ""############?# ### | | ????????????????????#!" "!#????????????# | | ???????????????????##"" ""##???????????# | | ???????????????????#" """ "#???????????# | | ???????????????????###; "$" /###???????????# | | ????????????????????# #"###"# #????????????# | | ????????????????????#####?#####????????????# ### | | ???????##?????############################## ### | | ??????? ???#"""##"""##"""##"""##"""##"|"# """ | | ????????"""" ## ""##|""##" "##"""##"" ##" # "" | | ????????"""" | | ????????"""" " | | ????????"""" """ | | ????????"""" ##"""##"""##""|##" "##!! ##"" ## #### | | ??????? ???#"""##"""##"""##"""##"""##"""####??? | | ???????##??????#############################?????? | | ?????????????????????????????????????????????????? | | ?????????????????????????????????????????????????? | | ?????????????????????????????????????????????????? | | ?????????????????????????????????????????????????? | | ?????????????????????????????????????????????????? | | ?????????????????????????????????????????????????? | | ?????????????????????????????????????????????????? | | ?????????????????????????????????????????????????? | | ?????????????????????????????????????????????????? | +----------------------------------------------------+ Best States ------------- Heat Dissipation 25 Energy Generation 10 Energy Capacity 2600 Matter Stores 300 Matter Capacity 300 Sight Range 16 Robot Scan Range 14 Terrain Scan Density 10 Additional Mass Support 9 Armor Coverage 800 Evasion (%) 55 Recoil Reduction 2 Item Schematics ----------------- None Robot Schematics ------------------ None Fabricated ------------ Nothing Alien Tech Used ----------------- None Achievements -------------- None Challenges ------------ None Game ------ Seed SuperdenseThiefLoader Manual? 0 Play Time 00:33:03 Cumulative 560.6 hours Start 2024.08.12 @ 15:01:58 End 2024.08.12 @ 15:38:52 Sessions 3 Manual Loads 0 Difficulty Rogue Special Mode None Game No. 325 Rogue 325 Adventurer 0 Explorer 0 Win Type - Total 36 Types 22/2/4/3/1/1/1/1/1 Lore% 97 Gallery% 98 Achievement% 98 Wizard Run 0 Options --------- Layout 1 ASCII 0 Keyboard 0 Movement Numpad Keybinds 0 Fullscreen 1 Font 24/Smallcaps Map View 50x35 Zoom Use 0% Tactical HUD 1 Map Filters NONE Filters NONE Steam 1 RUN: 8a2e9c8f-0133-4a97-9241-74c5d581eeff